bitfinex-derivatives/quotes_BNBF0:USTF0_20250630
["timestamp","ask_amount","ask_price","bid_price","bid_amount"]
[1751291381723,0.26601437,654.52,653.49,2.625]
[1751291389145,0.26601437,654.52,653.44,3.069]
[1751291392332,0.26601437,654.52,652.91,0.26620463]
[1751291392632,0.26601437,654.52,652.92,2.78456402]
[1751291392931,0.26601437,654.52,652.92,1.708]
[1751291396138,0.26601437,654.52,652.93,2.953]
[1751291411151,0.26601437,654.52,652.92,1.708]
[1751291414053,0.26601437,654.52,652.93,3.084]
[1751291423653,3.81233098,654.42,652.93,3.084]
[1751291424154,3.81233098,654.41,652.93,3.084]
[1751291424754,3.81233098,654.43,652.93,3.084]
[1751291425354,3.81233098,654.35,652.93,3.084]
[1751291426261,0.26601437,654.52,652.93,3.084]
[1751291430162,0.26601437,654.52,652.92,1.708]
[1751291432463,3.81233098,654.43,652.92,1.708]
[1751291433064,3.81233098,654.37,652.92,1.708]
[1751291433564,0.26601437,654.52,652.92,1.708]
[1751291433764,0.26601437,654.52,652.84,0.26624639]
[1751291433963,0.26601437,654.52,652.93,2.65]
[1751291434565,3.81233098,654.41,652.93,2.65]
[1751291435064,3.81233098,654.28,652.93,2.65]
[1751291435562,3.81233098,654.09,652.93,2.65]
[1751291436168,3.81233098,654.11,652.93,2.65]
[1751291436667,3.81233098,654.09,652.93,2.65]
[1751291436866,3.81233098,654.09,652.94,2.763]
[1751291437268,3.81233098,654.1,652.94,2.763]
[1751291437671,3.81233098,654.13,652.94,2.763]
[1751291438170,3.81233098,654.11,652.94,2.763]
[1751291439271,3.81233098,654.05,652.94,2.763]
[1751291440271,3.81233098,654.03,652.94,2.763]
[1751291442073,3.81233098,654.11,652.95,1.08256816]
[1751291442275,3.81233098,654.11,652.96,1.08256816]
[1751291442575,3.81233098,654.09,652.94,2.763]
[1751291442769,3.81233098,654.09,652.95,1.08258736]
[1751291442972,3.81233098,654.09,652.94,2.763]
[1751291443173,3.81233098,654.09,652.95,1.08258736]
[1751291443372,3.81233098,654.09,652.96,1.08258736]
[1751291443577,3.81233098,654.1,652.97,1.08258736]
[1751291443771,3.81233098,654.1,652.94,2.763]
[1751291443971,3.81233098,654.1,652.95,1.0829681]
[1751291444172,3.81233098,654.1,652.96,1.0829681]
[1751291444371,3.81233098,654.1,652.97,1.0829681]
[1751291444577,3.81233098,654.09,652.94,2.763]
[1751291444776,3.81233098,654.09,652.95,1.0831717]
[1751291444975,3.81233098,654.06,652.96,1.0831717]
[1751291445272,3.81233098,654.06,652.94,2.763]
[1751291445273,3.81233098,654.06,652.97,1.08340109]
[1751291445474,3.81233098,654.06,652.94,2.763]
[1751291445679,3.81233098,654.14,652.95,1.08341259]
[1751291445973,3.81233098,654.14,652.96,1.08341259]
[1751291446175,3.81233098,654.14,652.97,1.08341259]
[1751291446374,3.81233098,654.14,652.98,1.08341259]
[1751291446577,3.81233098,654.13,652.94,2.763]
[1751291446776,3.81233098,654.13,652.95,1.08363157]
[1751291446977,3.81233098,654.13,652.96,1.08363157]
[1751291447177,3.81233098,654.17,652.97,1.08363157]
[1751291447374,3.81233098,654.17,652.98,1.08363157]
[1751291447573,3.81233098,654.17,652.94,2.763]
[1751291447778,3.81233098,654.17,652.95,1.08380115]
[1751291448078,3.81233098,654.17,652.96,1.08380115]
[1751291448278,3.81233098,654.17,652.97,1.08380115]
[1751291448473,3.81233098,654.17,652.98,1.08380115]
[1751291448673,3.81233098,654.16,652.99,1.08380115]
[1751291448876,3.81233098,654.16,652.94,2.763]
[1751291449182,3.81233098,654.15,652.95,1.08400056]
[1751291449476,3.81233098,654.15,652.96,4.06000056]
[1751291449775,3.81233098,654.2,652.97,1.08400056]
[1751291450278,3.81233098,654.19,652.97,1.08400056]
[1751291450774,0.26601437,654.52,652.97,1.08400056]
[1751291450775,3.81233098,654.26,652.97,1.08400056]
[1751291452477,3.81233098,654.25,652.97,1.08400056]
[1751291453479,3.81233098,654.24,652.97,1.08400056]
[1751291453981,3.81233098,654.24,652.96,2.976]
[1751291454277,3.81233098,654.18,652.96,2.976]
[1751291455381,3.81233098,654.14,652.96,2.976]
[1751291456884,3.81233098,654.1,652.96,2.976]
[1751291459084,5.33726338,654.42,652.96,2.976]
[1751291459887,0.26601437,654.52,652.96,2.976]
[1751291460484,4.07834535,654.52,652.96,2.976]
[1751291460988,3.81233098,654.51,652.96,2.976]
[1751291463089,0.26601437,654.52,652.96,2.976]
[1751291463984,3.81233098,654.53,652.96,2.976]
[1751291465190,3.81233098,654.3,652.96,2.976]
[1751291465587,3.81233098,654.3,652.94,2.763]
[1751291465786,3.81233098,654.3,652.95,1.08459112]
[1751291466088,3.81233098,654.3,652.96,1.08459112]
[1751291466287,3.81233098,654.31,652.94,2.763]
[1751291466485,3.81233098,654.31,652.95,1.08460739]
[1751291466691,3.81233098,654.19,652.94,2.763]
[1751291466884,3.81233098,654.19,652.95,1.08460739]
[1751291467090,3.81233098,654.19,652.94,2.763]
[1751291467290,3.81233098,654.19,652.95,1.08461118]
[1751291467486,3.81233098,654.19,652.96,1.0846241]
[1751291467690,3.81233098,654.19,652.94,2.763]
[1751291467991,3.81233098,654.19,652.95,1.0846241]
[1751291468186,3.81233098,654.12,652.94,2.763]
[1751291468388,3.81233098,654.12,652.95,1.08462984]
[1751291468589,3.81233098,654.12,652.95,1.99]
[1751291468787,0.26630343,653.83,652.95,1.99]
[1751291478396,0.26630343,653.83,652.96,1.08469492]
[1751291478696,0.26630343,653.83,652.95,1.99]
[1751291480597,0.26630343,653.83,652.96,2.546]
[1751291492203,3.81233098,653.76,652.96,2.546]
[1751291494306,0.26630343,653.83,652.96,2.546]
[1751291515111,0.26630343,653.83,652.97,1.08539804]
[1751291515314,0.26630343,653.83,652.96,2.546]
[1751291515611,0.26630343,653.83,652.97,1.085392]
[1751291515816,0.26630343,653.83,652.96,2.546]
[1751291516033,0.26630343,653.83,652.97,1.085392]
[1751291516313,0.26630343,653.83,652.96,2.546]
[1751291516516,0.26630343,653.83,652.97,1.0853861]
[1751291516717,0.26630343,653.83,652.96,2.546]
[1751291516916,0.26630343,653.83,652.97,1.0853861]
[1751291517116,0.26630343,653.83,652.96,2.546]
[1751291517319,0.26630343,653.83,652.97,1.08537686]
[1751291517519,0.26630343,653.83,652.96,2.546]
[1751291517720,0.26630343,653.83,652.97,1.08538054]
[1751291517917,0.26630343,653.83,652.96,2.546]
[1751291518120,0.26630343,653.83,652.97,1.08538059]
[1751291518316,0.26630343,653.83,652.96,2.546]
[1751291518526,0.26630343,653.83,652.97,1.08537458]
[1751291518816,0.26630343,653.83,652.96,2.546]
[1751291519015,0.26630343,653.83,652.97,1.08537464]
[1751291519320,0.26630343,653.83,652.98,1.08537464]
[1751291519520,0.26630343,653.83,652.96,2.546]
[1751291519720,0.26630343,653.83,652.97,1.08533933]
[1751291519920,0.26630343,653.83,652.98,1.08533933]
[1751291520120,0.26630343,653.83,652.99,1.08533933]
[1751291520316,3.81233098,654.18,653.0,1.08533933]
[1751291520520,0.2662637,653.96,653.01,1.08533933]
[1751291520722,0.2662637,653.96,653.02,1.08533933]
[1751291520921,0.2662637,653.96,653.03,1.08533933]
[1751291521120,0.2662637,653.96,653.04,1.08533933]
[1751291521318,0.2662637,653.96,653.05,1.08533933]
[1751291521521,0.2662637,653.96,653.06,1.08533933]
[1751291521723,0.2662637,653.96,653.07,1.08533933]
[1751291521922,0.2662637,653.96,653.08,1.08533933]
[1751291522237,0.2662637,653.96,653.09,1.08533933]
[1751291522424,0.2662637,653.96,653.1,1.08533933]
[1751291522625,0.2662637,653.96,653.11,1.08533933]
[1751291522822,0.2662637,653.96,653.12,1.08533933]
[1751291523022,0.2662637,653.96,653.13,1.08533933]
[1751291523323,0.2662637,653.96,652.96,2.546]
[1751291523626,0.2662637,653.96,652.97,1.08358331]
[1751291523826,0.2662637,653.96,652.98,1.08358331]
[1751291524028,0.2662637,653.96,652.99,1.08358331]
[1751291524229,0.2662637,653.96,653.0,1.08358331]
[1751291524424,0.2662637,653.96,653.01,1.08358331]
[1751291524631,0.2662637,653.96,653.02,1.08358331]
[1751291524832,0.2662637,653.96,653.03,1.08358331]
[1751291525128,0.2662637,653.96,653.04,1.08358331]
[1751291525334,0.2662637,653.96,653.05,1.08358331]
[1751291525629,0.2662637,653.96,653.06,1.08358331]
[1751291525929,3.81233098,654.54,653.07,1.08358331]
[1751291526129,0.26619242,654.05,653.08,1.08358331]
[1751291526341,3.81233098,654.55,653.09,1.08358331]
[1751291526527,3.81233098,654.55,653.1,1.08358331]
[1751291526831,3.81233098,654.55,653.11,1.08358331]
[1751291527028,3.81233098,654.55,653.12,1.08358331]
[1751291527229,3.81233098,654.54,653.13,1.08358331]
[1751291527431,3.81233098,654.54,653.14,1.08358331]
[1751291527627,3.81233098,654.54,652.96,2.546]
[1751291527831,3.81233098,654.54,652.97,1.08199303]
[1751291528030,3.81233098,654.54,652.98,1.08199303]
[1751291528229,0.2662026,654.15,652.99,1.08199303]
[1751291528533,0.2662026,654.15,652.96,2.546]
[1751291528534,0.2662026,654.15,653.0,1.08199303]
[1751291528732,0.2662026,654.15,653.01,1.08199303]
[1751291528929,0.2662026,654.15,653.02,1.08199303]
[1751291529129,0.2662026,654.15,652.96,2.546]
[1751291529130,0.2662026,654.15,653.03,1.08199303]
[1751291529331,0.2662026,654.15,653.04,1.08199303]
[1751291529631,0.2662026,654.15,653.05,1.08199303]
[1751291529830,0.2662026,654.15,653.06,1.08199303]
[1751291530032,0.2662026,654.15,653.07,1.08199303]
[1751291530236,0.2662026,654.15,653.08,1.08199303]
[1751291530536,0.2662026,654.15,653.09,1.08199303]
[1751291530737,0.2662026,654.15,653.1,1.08199303]
[1751291531033,0.2662026,654.15,652.96,2.546]
[1751291531334,0.2662026,654.15,652.97,1.08121586]
[1751291531532,0.2662026,654.15,652.98,1.08121586]
[1751291531733,0.2662026,654.15,652.99,1.08121586]
[1751291531936,0.2662026,654.15,653.0,1.08121586]
[1751291532237,0.2662026,654.15,653.01,1.08121586]
[1751291532430,0.2662026,654.15,653.02,1.08121586]
[1751291532633,0.2662026,654.15,653.03,1.08121586]
[1751291532940,0.2662026,654.15,652.96,2.546]
[1751291533133,0.2662026,654.15,652.97,1.08105432]
[1751291533332,0.2662026,654.15,652.98,1.08105432]
[1751291533536,0.2662026,654.15,652.99,1.08105432]
[1751291533734,0.2662026,654.15,653.0,1.08105432]
[1751291533934,0.2662026,654.15,652.96,2.546]
[1751291533935,0.2662026,654.15,653.01,1.08105432]
[1751291534134,0.2662026,654.15,652.96,2.546]
[1751291534334,0.2662026,654.15,652.97,1.08099325]
[1751291534555,0.2662026,654.15,652.98,1.08099325]
[1751291534832,0.2662026,654.15,652.99,1.08099325]
[1751291535038,0.2662026,654.15,653.0,1.08099325]
[1751291535233,0.2662026,654.15,653.01,1.08099325]
[1751291535432,0.2662026,654.15,652.96,2.546]
[1751291535635,0.2662026,654.15,652.97,1.08090532]
[1751291535935,0.2662026,654.15,652.96,2.546]
[1751291535936,0.2662026,654.15,652.98,1.08090532]
[1751291536134,0.2662026,654.15,652.99,1.08090532]
[1751291536437,0.2662026,654.15,653.0,1.08090532]
[1751291536734,0.2662026,654.15,653.01,1.08090532]
[1751291537034,0.2662026,654.15,652.86,0.26630343]
[1751291537237,0.2662026,654.15,652.87,1.08086215]
[1751291537438,0.2662026,654.15,652.88,1.08086215]
[1751291537733,0.2662026,654.15,652.89,1.08086215]
[1751291537938,0.2662026,654.15,652.9,1.08086215]
[1751291538138,0.2662026,654.15,652.91,1.08086215]
[1751291540236,0.2662026,654.15,652.91,1.08017861]
[1751291540437,0.2662026,654.15,652.92,1.08017861]
[1751291540738,0.2662026,654.15,652.92,3.72117861]
[1751291540935,0.2662026,654.15,652.92,2.641]
[1751291550041,3.81233098,653.96,652.92,2.641]
[1751291550543,0.2662026,654.15,652.92,2.641]
[1751291550544,3.81233098,653.97,652.92,2.641]
[1751291551048,3.81233098,654.06,652.92,2.641]
[1751291553545,3.81233098,654.08,652.92,2.641]
[1751291554146,3.81233098,654.09,652.92,2.641]
[1751291554550,3.81233098,654.08,652.92,2.641]
[1751291555044,3.81233098,654.1,652.92,2.641]
[1751291555845,3.81233098,654.13,652.92,2.641]
[1751291556645,3.81233098,654.12,652.92,2.641]
[1751291557850,3.81233098,654.11,652.92,2.641]
[1751291558350,0.2662026,654.15,652.92,2.641]
[1751291566656,0.2662026,654.15,652.91,1.787]
[1751291566853,0.2662026,654.15,652.92,1.08097398]
[1751291567055,0.2662026,654.15,652.91,1.787]
[1751291567256,0.2662026,654.15,652.92,1.08097401]
[1751291567561,0.2662026,654.15,652.91,1.787]
[1751291567755,0.2662026,654.15,652.92,1.08013171]
[1751291567959,0.2662026,654.15,652.91,1.787]
[1751291568158,0.2662026,654.15,652.92,1.08013171]
[1751291568356,0.2662026,654.15,652.91,1.787]
[1751291569959,0.2662026,654.15,652.92,2.594]
[1751291571458,0.2662026,654.15,652.93,1.08022004]
[1751291571661,0.2662026,654.15,652.94,1.08022004]
[1751291571865,0.2662026,654.15,652.95,1.08022004]
[1751291572061,0.2662026,654.15,652.96,1.08022004]
[1751291572260,0.2662026,654.15,652.97,1.08022004]
[1751291572465,0.2662026,654.15,652.98,1.08022004]
[1751291572765,0.2662026,654.15,652.99,1.08022004]
[1751291572961,0.2662026,654.15,652.92,2.594]
[1751291573163,0.2662026,654.15,653.0,2.238]
[1751291584069,4.07853358,654.15,653.0,2.238]
[1751291585174,3.81233098,654.09,653.0,2.238]
[1751291587173,3.81233098,654.07,652.92,2.594]
[1751291587374,3.81233098,654.07,652.93,1.08121927]
[1751291587575,3.81233098,654.07,652.94,1.08121927]
[1751291587775,3.81233098,654.07,652.95,1.08121927]
[1751291587976,3.81233098,654.07,652.93,1.08121927]
[1751291588276,3.81233098,654.05,652.93,1.08121927]
[1751291589374,3.81233098,654.04,652.93,1.08121927]
[1751291589981,3.81233098,654.05,652.94,2.317]
[1751291590179,3.81233098,654.05,652.95,1.08121927]
[1751291590475,3.81233098,654.04,652.95,1.08121927]
[1751291591475,0.2662026,654.15,652.95,1.08121927]
[1751291591476,3.81233098,653.98,652.95,1.08121927]
[1751291591881,3.81233098,654.0,652.95,1.08121927]
[1751291592378,3.81233098,654.02,652.95,1.08121927]
[1751291593577,3.81233098,654.01,652.95,1.08121927]
[1751291594086,3.81233098,654.02,652.95,1.08121927]
[1751291594680,0.2662026,654.15,652.95,1.08121927]
[1751291594681,3.81233098,654.01,652.95,1.08121927]
[1751291595184,3.81233098,654.06,652.95,1.08121927]
[1751291596182,3.81233098,654.04,652.95,1.08121927]
[1751291596684,3.81233098,654.02,652.95,1.08121927]
[1751291597285,3.81233098,654.0,652.95,1.08121927]
[1751291599888,0.2662026,654.15,652.95,1.08121927]
[1751291599889,3.81233098,654.02,652.95,1.08121927]
[1751291600588,3.81233098,653.96,652.95,1.08121927]
[1751291602090,3.81233098,654.05,652.95,1.08121927]
[1751291602613,3.81233098,654.07,652.95,1.08121927]
[1751291603489,0.2662026,654.15,652.95,1.08121927]
[1751291603490,3.81233098,654.11,652.95,1.08121927]
[1751291605192,3.81233098,654.1,652.95,1.08121927]
[1751291607694,0.2662026,654.15,652.95,1.08121927]
[1751291608191,3.81233098,654.05,652.95,1.08121927]
[1751291608690,3.81233098,654.06,652.95,1.08121927]
[1751291610297,3.81233098,654.05,652.95,1.08121927]
[1751291610498,3.81233098,654.05,652.96,2.478]
[1751291610697,3.81233098,654.06,652.97,1.08121927]
[1751291611298,0.2662026,654.15,652.97,1.08121927]
[1751291621302,3.81233098,654.01,652.97,1.08121927]
[1751291623202,3.81233098,654.02,652.97,1.08121927]
[1751291623603,3.81233098,654.01,652.97,1.08121927]
[1751291624708,3.81233098,654.13,652.97,1.08121927]
[1751291625307,3.81233098,654.09,652.97,1.08121927]
[1751291626906,0.2662026,654.15,652.96,2.478]
[1751291627409,3.81233098,654.08,652.96,2.478]
[1751291627806,3.81233098,654.03,652.96,2.478]
[1751291628510,3.81233098,654.02,652.96,2.478]
[1751291628811,3.81233098,654.05,652.96,2.478]
[1751291629311,3.81233098,653.98,652.96,2.478]
[1751291629807,3.81233098,653.99,652.96,2.478]
[1751291630411,3.81233098,654.0,652.96,2.478]
[1751291631010,3.81233098,653.98,652.96,2.478]
[1751291632009,3.81233098,653.99,652.96,2.478]
[1751291632509,3.81233098,654.0,652.96,2.478]
[1751291633613,3.81233098,654.02,652.96,2.478]
[1751291634113,3.81233098,654.13,652.96,2.478]
[1751291635808,3.81233098,654.14,652.96,2.478]
[1751291636716,4.07853358,654.15,652.96,2.478]
[1751291637717,0.2662026,654.15,652.96,2.478]
[1751291638818,4.07853358,654.15,652.96,2.478]
[1751291639314,3.81233098,654.14,652.96,2.478]
[1751291639815,4.07853358,654.15,652.96,2.478]
[1751291640818,0.2662026,654.15,652.96,2.478]
[1751291643819,3.81233098,653.98,652.96,2.478]
[1751291644814,0.2662026,654.15,652.96,2.478]
[1751291648720,0.2662026,654.15,652.97,2.968]
[1751291654628,3.81233098,654.13,652.97,2.968]
[1751291655126,0.2662026,654.15,652.97,2.968]
[1751291664934,0.2662026,654.15,652.96,2.478]
[1751291668035,0.2662026,654.15,652.97,2.908]
[1751291673547,0.2662026,654.15,652.98,1.819]
[1751291673747,3.81233098,654.1,652.98,1.819]
[1751291674346,3.81233098,654.09,652.98,1.819]
[1751291675744,3.81233098,654.08,652.98,1.819]
[1751291676947,3.81233098,654.05,652.98,1.819]
[1751291677343,3.81233098,654.04,652.98,1.819]
[1751291678045,3.81233098,654.02,652.98,1.819]
[1751291679550,3.81233098,654.04,652.98,1.819]
[1751291679952,3.81233098,654.06,652.98,1.819]
[1751291682653,0.2662026,654.15,652.98,1.819]
[1751291682654,3.81233098,654.0,652.98,1.819]
[1751291683154,3.81233098,653.97,652.98,1.819]
[1751291683649,3.81233098,654.02,652.98,1.819]
[1751291685550,3.81233098,654.02,652.97,2.908]
[1751291687150,3.81233098,654.08,652.97,2.908]
[1751291688648,3.81233098,654.08,652.98,2.489]
[1751291689349,3.81233098,654.03,652.98,2.489]
[1751291689753,3.81233098,654.01,652.98,2.489]
[1751291690854,3.81233098,654.03,652.98,2.489]
[1751291691259,3.81233098,654.02,652.98,2.489]
[1751291692354,3.81233098,654.01,652.98,2.489]
[1751291692858,3.81233098,654.07,652.98,2.489]
[1751291693354,3.81233098,654.1,652.98,2.489]
[1751291694559,0.2662026,654.15,652.98,2.489]
[1751291695461,4.07853358,654.15,652.98,2.489]
[1751291696058,3.81233098,654.13,652.99,1.741]
[1751291696961,3.81233098,654.14,652.99,1.741]
[1751291697661,3.81233098,654.13,652.99,1.741]
[1751291698259,3.81233098,654.11,652.99,1.741]
[1751291698763,3.81233098,654.04,652.99,1.741]
[1751291700763,3.81233098,654.03,652.99,1.741]
[1751291701463,3.81233098,653.99,652.99,1.741]
[1751291702865,3.81233098,653.98,652.99,1.741]
[1751291703473,3.81233098,653.97,652.99,1.741]
[1751291704868,3.81233098,653.87,652.99,1.741]
[1751291705469,3.81233098,653.85,652.99,1.741]
[1751291706970,3.81233098,653.83,652.99,1.741]
[1751291707470,3.81233098,653.82,652.99,1.741]
[1751291709075,3.81233098,653.83,652.99,1.741]
[1751291709574,3.81233098,653.87,652.99,1.741]
[1751291710572,3.81233098,653.87,653.0,1.961]
[1751291711574,3.81233098,653.78,653.0,1.961]
[1751291713679,3.81233098,653.82,653.0,1.961]
[1751291715776,3.81233098,654.0,653.0,1.961]
[1751291716282,3.81233098,654.01,653.0,1.961]
[1751291717378,3.81233098,654.02,653.0,1.961]
[1751291718375,3.81233098,654.01,653.0,1.961]
[1751291719878,3.81233098,654.02,653.0,1.961]
[1751291721482,3.81233098,654.03,653.0,1.961]
[1751291724482,3.81233098,654.04,653.0,1.961]
[1751291725685,3.81233098,653.8,653.0,1.961]
[1751291726182,3.81233098,653.82,653.0,1.961]
[1751291728479,0.26637784,653.62,653.0,1.961]
[1751291753701,3.81233098,654.0,653.0,1.961]
[1751291754202,0.26632076,653.72,653.0,1.961]
[1751291760910,5.33726338,654.05,653.0,1.961]
[1751291760911,0.26632381,653.79,653.0,1.961]
[1751291764614,0.26632381,653.79,652.7,0.26634725]
[1751291764813,0.26632381,653.79,652.71,1.08127534]
[1751291765014,0.26632381,653.79,652.72,1.08127534]
[1751291765211,0.26632381,653.79,652.73,1.08127534]
[1751291765415,0.26632381,653.79,652.74,1.08127534]
[1751291765712,0.26632381,653.79,652.75,1.08127534]
[1751291766009,0.26632381,653.79,652.76,1.08127534]
[1751291766215,0.26632381,653.79,652.77,1.08127534]
[1751291766411,0.26632381,653.79,652.78,1.08127534]
[1751291766611,0.26632381,653.79,652.79,1.08127534]
[1751291766810,0.26632381,653.79,652.8,1.08127534]
[1751291767015,0.26632381,653.79,652.81,1.08127534]
[1751291767315,0.26632381,653.79,652.82,1.08127534]
[1751291767510,0.26632381,653.79,652.83,1.08127534]
[1751291767712,0.26632381,653.79,652.84,1.08127534]
[1751291767912,0.26632381,653.79,652.85,1.08127534]
[1751291768110,0.26632381,653.79,652.86,1.08127534]
[1751291768312,0.26632381,653.79,652.87,1.08127534]
[1751291768516,0.26632381,653.79,652.81,2.514]
[1751291768714,0.26632381,653.79,652.82,1.08105253]
[1751291768910,0.26632381,653.79,652.83,1.08105253]
[1751291769111,0.26632381,653.79,652.84,1.08105253]
[1751291769312,0.26632381,653.79,652.85,1.08105253]
[1751291769515,0.26632381,653.79,652.86,1.08105253]
[1751291769716,0.26632381,653.79,652.87,1.08105253]
[1751291769917,0.26632381,653.79,652.81,2.514]
[1751291770117,0.26632381,653.79,652.82,1.0810042]
[1751291770416,0.26632381,653.79,652.83,1.0810042]
[1751291770611,0.26632381,653.79,652.84,1.0810042]
[1751291770811,0.26632381,653.79,652.85,1.0810042]
[1751291771012,0.26632381,653.79,652.86,1.0810042]
[1751291771216,0.26632381,653.79,652.81,2.514]
[1751291771419,0.26632381,653.79,652.82,1.08091573]
[1751291771716,0.26632381,653.79,652.83,1.08091573]
[1751291771916,0.26632381,653.79,652.84,1.08091573]
[1751291772216,0.26632381,653.79,652.85,1.08091573]
[1751291772416,0.26632381,653.79,652.86,1.08091573]
[1751291772615,0.26632381,653.79,652.81,2.514]
[1751291772819,0.26632381,653.79,652.82,1.08087485]
[1751291773020,0.26632381,653.79,652.83,1.08087485]
[1751291773217,0.26632381,653.79,652.84,1.08087485]
[1751291773417,0.26632381,653.79,652.85,1.08087485]
[1751291773717,0.26632381,653.79,652.86,1.08087485]
[1751291774014,0.26632381,653.79,652.81,2.514]
[1751291774215,0.26632381,653.79,652.82,1.08085302]
[1751291774416,0.26632381,653.79,652.83,1.08085302]
[1751291774612,0.26632381,653.79,652.84,1.08085302]
[1751291774818,0.26632381,653.79,652.85,1.08085302]
[1751291775014,0.26632381,653.79,652.81,2.514]
[1751291775215,0.26632381,653.79,652.82,1.08082729]
[1751291775515,0.26632381,653.79,652.83,1.08082729]
[1751291775719,0.26632381,653.79,652.84,1.08082729]
[1751291775914,0.26632381,653.79,652.85,1.08082729]
[1751291776119,0.26632381,653.79,652.81,2.514]
[1751291776319,0.26632381,653.79,652.82,1.08080266]
[1751291776516,0.26632381,653.79,652.83,1.08080266]
[1751291776717,0.26632381,653.79,652.84,1.08080266]
[1751291776920,0.26632381,653.79,652.85,1.08080266]
[1751291777217,0.26632381,653.79,652.81,2.514]
[1751291777422,0.26632381,653.79,652.82,1.08085447]
[1751291777722,0.26632381,653.79,652.83,1.08085447]
[1751291778018,0.26632381,653.79,652.84,1.08085447]
[1751291778218,0.26632381,653.79,652.85,1.08085447]
[1751291780422,0.26632381,653.79,652.81,2.514]
[1751291789425,4.07865479,653.79,652.81,2.514]
[1751291790125,4.07865479,653.79,652.82,1.08167713]
[1751291790325,4.07865479,653.79,652.81,2.514]
[1751291790527,4.07865479,653.79,652.82,1.08175027]
[1751291790726,3.81233098,653.77,652.81,2.514]
[1751291790923,3.81233098,653.77,652.82,1.08175027]
[1751291791126,3.81233098,653.77,652.81,2.514]
[1751291791422,0.26632381,653.79,652.82,1.08185086]
[1751291791623,0.26632381,653.79,652.81,2.514]
[1751291791827,0.26632381,653.79,652.82,1.08185086]
[1751291792028,0.26632381,653.79,652.81,2.514]
[1751291792224,0.26632381,653.79,652.82,1.08187201]
[1751291792428,0.26632381,653.79,652.81,2.514]
[1751291792626,0.26632381,653.79,652.82,1.08195806]
[1751291792926,3.81233098,653.77,652.81,2.514]
[1751291793122,3.81233098,653.77,652.82,1.08195806]
[1751291793323,3.81233098,653.75,652.83,1.08195806]
[1751291793524,3.81233098,653.75,652.81,2.514]
[1751291793724,3.81233098,653.76,652.82,1.08207261]
[1751291793925,3.81233098,653.76,652.81,2.514]
[1751291794126,3.81233098,653.76,652.82,1.08207261]
[1751291794428,3.81233098,653.75,652.83,1.08207261]
[1751291794624,3.81233098,653.75,652.81,2.514]
[1751291794828,3.81233098,653.75,652.82,1.08219452]
[1751291795027,3.81233098,653.75,652.83,1.08219452]
[1751291795225,3.81233098,653.75,652.81,2.514]
[1751291795427,3.81233098,653.75,652.82,1.08232581]
[1751291795625,3.81233098,653.75,652.83,1.08232581]
[1751291795829,3.81233098,653.75,652.81,2.514]
[1751291796028,3.81233098,653.75,652.82,1.08232581]
[1751291796228,3.81233098,653.75,652.83,1.08232581]
[1751291796427,3.81233098,653.74,652.84,1.08243261]
[1751291796629,3.81233098,653.74,652.81,2.514]
[1751291796828,4.07865479,653.79,652.82,1.08243261]
[1751291797028,4.07865479,653.79,652.83,1.08243261]
[1751291797231,4.07865479,653.79,652.84,1.08243261]
[1751291797531,3.81233098,653.78,652.81,2.514]
[1751291797731,3.81233098,653.78,652.82,1.08254707]
[1751291797930,3.81233098,653.78,652.83,1.08254707]
[1751291798128,3.81233098,653.78,652.84,1.08254707]
[1751291798332,3.81233098,653.78,652.81,2.514]
[1751291798628,3.81233098,653.77,652.82,1.08267072]
[1751291798833,3.81233098,653.77,652.83,1.08267072]
[1751291799029,0.26632381,653.79,652.84,1.08267072]
[1751291799329,0.26632381,653.79,652.85,1.08267072]
[1751291799533,0.26632381,653.79,652.81,2.514]
[1751291799829,0.26632381,653.79,652.82,1.0828055]
[1751291800130,0.26632381,653.79,652.83,1.0828055]
[1751291800329,0.26632381,653.79,652.84,1.0828055]
[1751291800530,0.26632381,653.79,652.85,1.0828055]
[1751291800832,0.26632381,653.79,652.86,1.0828055]
[1751291801032,0.26632381,653.79,652.81,2.514]
[1751291801229,0.26632381,653.79,652.82,1.08295443]
[1751291801529,0.26632381,653.79,652.83,1.08295443]
[1751291801727,0.26632381,653.79,652.84,1.08295443]
[1751291801929,0.26632381,653.79,652.85,1.08295443]
[1751291802131,0.26632381,653.79,652.86,1.08295443]
[1751291802434,0.26632381,653.79,652.7,0.26634725]
[1751291802734,0.26632381,653.79,652.71,1.08311255]
[1751291802934,0.26632381,653.79,652.72,1.08311255]
[1751291803131,0.26632381,653.79,652.73,1.08311255]